fUSD/lending_fUSD_20241109
["ID","MTS","AMOUNT","RATE_DAILY","PERIOD"]
[341720628,1731130238904,-10000.0,0.000299,2]
[341720629,1731130238913,-155.53371703,0.000299,2]
[341720630,1731130238922,-150.0,0.000299,2]
[341720631,1731130238931,-1000.0,0.000299,2]
[341720632,1731130238940,-2000.0,0.000299,2]
[341720633,1731130238949,-328.9100611,0.000299,2]
[341720634,1731130238959,-292.69007215,0.000299,2]
[341720635,1731130238968,-274.80556168,0.000299,2]
[341720636,1731130238977,-292.69007209,0.00029919,2]
[341720637,1731130238986,-201.0,0.0002992,23]
[341720638,1731130238995,-5688.07759752,0.00029924,15]
[341720639,1731130239004,-292.69007209,0.00029939,2]
[341720640,1731130239013,-161.249,0.00029945,24]
[341720641,1731130239024,-5688.07759752,0.00029952,15]
[341720642,1731130239033,-155.954,0.00029953,2]
[341720643,1731130239042,-292.69007209,0.00029958,2]
[341720644,1731130239052,-155.53371702,0.00029968,2]
[341720645,1731130239064,-500.0,0.00029973,2]
[341720646,1731130239074,-292.69007209,0.00029978,2]
[341720647,1731130239083,-5688.07759752,0.0002998,15]
[341720648,1731130239093,-224.81,0.0002999,2]
[341720649,1731130239102,-249.97404408,0.0002999,2]
[341720650,1731130239111,-249.97404408,0.0002999,2]
[341720651,1731130239120,-249.97404408,0.0002999,2]
[341720652,1731130239130,-292.69007209,0.00029997,2]
[341720653,1731130239140,-500.0,0.00029999,2]
[341720654,1731130239151,-273.65949528,0.00029999,2]
[341720655,1731130239160,-500.0,0.00029999,2]
[341720656,1731130239170,-500.0,0.00029999,7]
[341720657,1731130239179,-1375.25646859,0.00029999,2]
[341720658,1731130239188,-290.92016558,0.00029999,2]
[341720659,1731130239199,-2111.70370995,0.0003,2]
[341720660,1731130239208,-50612.50327646,0.0003,4]
[341720661,1731130240061,-4276.48182047,0.0003,4]
[341720662,1731130240073,-1593.75750387,0.0003,4]
[341720663,1731130240085,-2537.03952318,0.0003,4]
[341720664,1731130240096,-1045.80084702,0.0003,4]
[341720665,1731130240107,-1407.89829209,0.0003,4]
[341720666,1731130240137,-662.70634916,0.0003,4]
[341720667,1731130240148,-649.84901329,0.0003,4]
[341720668,1731130240159,-544.34473846,0.0003,4]
[341720669,1731130240170,-2654.1894928,0.0003,4]
[341720670,1731130240181,-4831.43672794,0.0003,4]
[341720671,1731130240191,-2835.104616,0.0003,4]
[341720672,1731130240202,-3921.62591642,0.0003,4]
[341720673,1731130240213,-852.22895866,0.0003,4]
[341720674,1731130240224,-376.58993158,0.0003,4]
[341720675,1731130240235,-630.25841339,0.0003,4]
[341720676,1731130240246,-4465.35320515,0.0003,4]
[341720677,1731130240257,-807.664508,0.0003,4]
[341720678,1731130240268,-456.45211275,0.0003,4]
[341720679,1731130240286,-10657.5,0.0003,4]
[341720680,1731130240379,-1466.28995734,0.0003,4]
[341720681,1731130240390,-2513.58297631,0.0003,4]
[341720691,1731130243201,-906.62460737,0.000294,2]
[341720693,1731130243578,-163.14239018,0.000294,2]
[341720695,1731130243587,-1928.17169829,0.0003,4]
[341720697,1731130243599,-377.11693109,0.0003,4]
[341720700,1731130243620,-2280.93619015,0.0003,4]
[341720702,1731130243632,-3898.61490015,0.0003,4]
[341720714,1731130246280,-1146.874423,0.0003,4]
[341720715,1731130246374,-1495.220042,0.0003,4]
[341720716,1731130246662,-5441.29059182,0.0003,4]
[341720717,1731130246675,-7281.52717296,0.0003,4]
[341720720,1731130321887,300.0,0.00019725,2]
[341720721,1731130561325,150.0,0.00019725,2]
[341720722,1731130561348,150.0,0.00019725,2]
[341720725,1731130855848,150.0,0.00015342,2]
[341720726,1731130855872,11.94,0.00015342,2]
[341720727,1731130921956,300.0,0.00019725,2]
[341720729,1731131041293,150.0,0.00019725,2]
[341720730,1731131041315,150.0,0.00019725,2]
[341720731,1731131101697,150.0,0.00019725,2]
[341720732,1731131101721,150.0,0.00019725,2]
[341720733,1731131226140,-837.69749823,0.000206,2]
[341720735,1731131246092,-158.90055583,0.000206,2]
[341720736,1731131249095,-88.40194594,0.000206,2]
[341720737,1731131249119,-1122.93825,0.00023635,2]
[341720738,1731131249140,-170.037,0.00023635,2]
[341720739,1731131249160,-484.734,0.00023635,2]
[341720740,1731131249180,-204.0,0.0002509,2]
[341720741,1731131249200,-204.0,0.0002548,2]
[341720742,1731131249220,-204.0,0.0002587,2]
[341720743,1731131249240,-204.0,0.0002626,2]
[341720744,1731131249262,-500.0,0.000263,7]
[341720745,1731131249283,-500.0,0.000263,7]
[341720746,1731131249303,-503.07513458,0.000263,7]
[341720747,1731131249323,-1361.964028,0.00026506,2]
[341720748,1731131249343,-204.0,0.0002664,2]
[341720749,1731131249365,-204.0,0.0002703,2]
[341720750,1731131249387,-574.72,0.00027074,2]
[341720751,1731131249487,-219.71,0.00027171,2]
[341720752,1731131249507,-204.0,0.0002742,2]
[341720753,1731131249527,-219.71,0.00027608,2]
[341720754,1731131249547,-1000.0,0.00027741,2]
[341720755,1731131249569,-204.0,0.0002781,2]
[341720756,1731131249590,-150.0,0.0002791,2]
[341720757,1731131249611,-193.9,0.00027912,120]
[341720758,1731131249631,-2751.0,0.00027922,2]
[341720759,1731131249653,-200.0,0.00027923,2]
[341720760,1731131249675,-269.41,0.00027938,2]
[341720761,1731131249695,-500.0,0.00027944,7]
[341720762,1731131249715,-500.0,0.00027944,7]
[341720763,1731131249736,-165.82,0.00027965,2]
[341720764,1731131249757,-200.0,0.00027978,2]
[341720765,1731131249780,-158.39,0.00027986,30]
[341720766,1731131249802,-449.1234472,0.00028,29]
[341720767,1731131249823,-219.71,0.00028044,2]
[341720768,1731131249846,-204.0,0.000282,2]
[341720769,1731131249867,-450.2,0.00028409,2]
[341720770,1731131249889,-219.71,0.00028481,2]
[341720771,1731131249910,-9493.8130085,0.00028517,2]
[341720772,1731131286725,3359.61127712,0.00027,60]
[341720779,1731131413870,574.72,0.00026769,2]
[341720781,1731131432270,-204.0,0.0002858,2]
[341720782,1731131432279,-160.57,0.00028583,2]
[341720783,1731131432289,-20283.79335404,0.00028638,2]
[341720784,1731131432301,-567.54573296,0.00028638,2]
[341720785,1731131432614,-3048.660913,0.00028638,2]
[341720786,1731131432623,-215.52,0.00028657,2]
[341720787,1731131432633,-669.07,0.00028658,2]
[341720788,1731131432642,-154.34,0.00028676,2]
[341720789,1731131432652,-2590.27,0.00028726,2]
[341720791,1731131432661,-160.57,0.00028726,2]
[341720793,1731131432670,-152.0,0.00028749,3]
[341720795,1731131432680,-167.27,0.00028792,2]
[341720796,1731131432688,-160.57,0.00028869,2]
[341720797,1731131432698,-219.71,0.00028917,2]
[341720798,1731131432707,-204.0,0.0002897,2]
[341720799,1731131432717,-1800.0,0.00029,30]
[341720800,1731131432726,-574.72,0.00029033,2]
[341720801,1731131432737,-296.4,0.00029065,120]
[341720802,1731131432748,-224.82,0.00029109,2]
[341720803,1731131432757,-761.84,0.00029178,2]
[341720804,1731131432767,-219.71,0.00029354,2]
[341720805,1731131432776,-204.0,0.0002936,2]
[341720806,1731131432787,-1027.0667278,0.000294,2]
[341720807,1731131432797,-1051.54706726,0.000294,2]
[341720808,1731131432807,-1000.0,0.000297,2]
[341720809,1731131432816,-305.85800046,0.00029731,2]
[341720810,1731131432826,-204.0,0.0002975,2]
[341720811,1731131432836,-204.0,0.0002975,2]
[341720812,1731131432845,-5000.0,0.0002975,2]
[341720813,1731131432854,-150.0,0.00029759,2]
[341720814,1731131432863,-1359.2395,0.0002978,2]
[341720815,1731131432872,-219.71,0.00029791,2]
[341720816,1731131432882,-1340.26725294,0.00029799,2]
[341720817,1731131432891,-24867.24968313,0.000298,2]
[341720818,1731131432907,-1752.0,0.000298,2]
[341720819,1731131432918,-1135.33262704,0.000298,2]
[341720820,1731131433044,-19909.49848983,0.000298,2]
[341720821,1731131433053,-1000.0,0.000298,2]
[341720822,1731131433063,-3412.84655853,0.000298,15]
[341720823,1731131433073,-3412.84655851,0.00029826,15]
[341720824,1731131433082,-3412.84655851,0.00029852,15]
[341720825,1731131433092,-3412.84655851,0.00029879,15]
[341720826,1731131433101,-161.249,0.00029889,24]
[341720827,1731131433111,-328.9100611,0.00029899,2]
[341720828,1731131433120,-63646.1724,0.000299,2]
[341720829,1731131433129,-155.53371703,0.000299,2]
[341720830,1731131433138,-9999.7264,0.000299,2]
[341720831,1731131433148,-2528.11598627,0.000299,2]
[341720832,1731131433157,-3412.84655851,0.00029905,15]
[341720833,1731131433167,-150.0,0.00029923,2]
[341720834,1731131433176,-201.0,0.0002993,23]
[341720835,1731131433185,-3412.84655851,0.00029931,15]
[341720836,1731131433194,-150.0,0.00029941,2]
[341720837,1731131433203,-3412.84655851,0.00029957,15]
[341720838,1731131433212,-155.53371702,0.00029968,2]
[341720839,1731131433221,-2528.11598625,0.00029968,2]
[341720840,1731131433231,-500.0,0.00029973,2]
[341720841,1731131433245,-292.69007209,0.00029977,2]
[341720842,1731131433254,-3412.84655851,0.00029984,15]
[341720843,1731131433263,-249.97404408,0.0002999,2]
[341720844,1731131433273,-249.97404408,0.0002999,2]
[341720845,1731131433282,-249.97404408,0.0002999,2]
[341720846,1731131433292,-4318.475,0.00029995,2]
[341720847,1731131433301,-9468.53236426,0.00029995,2]
[341720848,1731131433322,-3052.59993574,0.00029995,2]
[341720849,1731131433335,-440.7749139,0.00029995,2]
[341720850,1731131433348,-656.0927861,0.00029995,2]
[341720851,1731131433358,-150.0,0.00029995,2]
[341720852,1731131433367,-155.954,0.00029995,2]
[341720853,1731131433377,-24.32347875,0.00029997,2]
[341720856,1731131438542,-274.80556168,0.000299,2]
[341720857,1731131438551,-268.36659334,0.00029997,2]
[341720858,1731131438560,-181.110914,0.00029997,2]
[341720859,1731131438570,-181.110914,0.00029997,2]
[341720860,1731131438579,-181.110914,0.00029997,3]
[341720861,1731131438588,-83.049103,0.00029997,2]
[341720862,1731131438655,-416.950897,0.00029997,2]
[341720863,1731131438665,-580.99689262,0.00029997,2]
[341720864,1731131438675,-500.0,0.00029997,2]
[341720865,1731131438684,-500.0,0.00029997,2]
[341720866,1731131438695,-500.0,0.00029997,2]
[341720867,1731131438704,-238388.93573009,0.00029998,2]
[341720868,1731131438716,-3627.52220588,0.00029999,2]
[341720869,1731131438728,-500.0,0.00029999,7]
[341720870,1731131438737,-523.92652395,0.00029999,2]
[341720889,1731131440287,-593.07749981,0.00029399,2]
[341720890,1731131440346,-546.39062447,0.00029399,2]
[341720891,1731131440355,-6976.07347605,0.00029999,2]
[341720892,1731131440365,-1375.25646859,0.00029999,2]
[341720893,1731131440375,-2111.70370995,0.0003,2]
[341720894,1731131440383,-44386.74831564,0.0003,4]
[341720895,1731131440395,-3728.39441453,0.0003,4]
[341720896,1731131440406,-1203.56472371,0.0003,4]
[341720897,1731131440416,-1912.69500003,0.0003,4]
[341720898,1731131440428,-271.08387855,0.0003,4]
[341720899,1731131440439,-4883.87071231,0.0003,4]
[341720900,1731131440453,-388.8658327,0.0003,4]
[341720901,1731131440478,-642.08466306,0.0003,4]
[341720902,1731131440522,-429.15446819,0.0003,4]
[341720930,1731131443543,-1240.6631406,0.0003,4]
[341720931,1731131443600,-10102.11601833,0.0003,4]
[341720932,1731131443658,-605.13455264,0.0003,4]
[341720933,1731131443717,-2285.82171714,0.0003,4]
[341720934,1731131443729,-39465.40260722,0.0003,4]
[341720935,1731131443738,-4678.75878574,0.0003,4]
[341720936,1731131443747,-106591.47129824,0.0003,4]
[341720937,1731131443775,-330.5,0.0003,4]
[341720938,1731131443907,-30003.23536242,0.0003,4]
[341720940,1731131446450,-500.0,0.00029899,2]
[341720941,1731131446460,-396.17101949,0.00029899,2]
[341720942,1731131446473,-32.49175418,0.00029899,2]
[341720943,1731131446674,-467.50824582,0.00029899,2]
[341720944,1731131446685,-298.12261258,0.0003,4]
[341720961,1731131449392,500.0,0.00026882,2]
[341720962,1731131498791,472.0,0.000207,2]
[341720963,1731131499236,448.0,0.000207,2]
[341720964,1731131500246,672.606,0.00024874,2]
[341720968,1731131861136,-150.0,0.00023003,2]
[341720970,1731132002456,150.0,0.00019725,2]
[341720971,1731132002479,150.0,0.00019725,2]
[341720972,1731132002588,293.29844079,0.0001726,2]
[341720973,1731132002610,150.0,0.0001726,2]
[341720974,1731132002639,56.70155921,0.0001726,2]
[341720975,1731132002961,500.0,0.0001726,2]
[341720976,1731132003362,390.1174959,0.0001726,2]
[341720978,1731132182791,300.0,0.00019725,2]
[341720980,1731132297564,158.1,0.00015342,2]
[341720981,1731132356143,-299.42507485,0.00021484,2]
[341720990,1731132451092,-190.31006034,0.00022903,2]
[341720991,1731132451114,-158.1,0.00022945,2]
[341720992,1731132451134,-150.0,0.00023003,2]
[341720993,1731132451154,-64.48,0.00023003,2]
[341720994,1731132451174,-181.0,0.00025,2]
[341720995,1731132451195,-546.05,0.0002624,2]
[341720996,1731132451215,-130.89499525,0.00028,60]
[341721000,1731132542339,150.0,0.00019725,2]
[341721001,1731132542368,150.0,0.00019725,2]
[341721002,1731132548103,-420.0,0.00021484,2]
[341721003,1731132548126,-280.97271045,0.00023,2]
[341721004,1731132548146,-587.0,0.00023401,2]
[341721005,1731132619818,-150.0,0.000279,2]
[341721018,1731132631511,-734.12190355,0.000274,120]
[341721019,1731132631540,-377.86782155,0.000274,120]
[341721020,1731132631569,-333.4800896,0.000274,120]
[341721021,1731132631581,-542.5301853,0.000274,120]
[341721022,1731132631591,-592.05416991,0.000279,2]
[341721023,1731132631601,-250.81913856,0.00028,60]
[341721024,1731132631612,-7017.91,0.00028183,2]
[341721025,1731132631622,-250.0,0.00028187,2]
[341721026,1731132631633,-500.0,0.00028187,2]
[341721027,1731132631644,-733.2,0.00028208,2]
[341721028,1731132631654,-2856.91,0.00028208,10]
[341721029,1731132631665,-150.99,0.00028208,2]
[341721030,1731132631675,-236.01,0.00028248,2]
[341721031,1731132631685,-237.12,0.00028263,120]
[341721032,1731132631695,-250.0,0.00028275,2]
[341721033,1731132631705,-333.65,0.0002828,2]
[341721034,1731132631715,-538.07,0.00028303,120]
[341721035,1731132631724,-1004.47,0.00028306,2]
[341721036,1731132631734,-1000.0,0.00028355,2]
[341721037,1731132631744,-307.094,0.00028417,2]
[341721038,1731132631753,-4475.03,0.0002842,2]
[341721039,1731132631763,-2623.19,0.000285,2]
[341721040,1731132631773,-546.05,0.00028504,2]
[341721041,1731132631783,-168.6,0.00028522,2]
[341721042,1731132631792,-156.31,0.00028646,2]
[341721043,1731132631802,-733.2,0.00028661,2]
[341721044,1731132631812,-156.31,0.00028704,2]
[341721045,1731132631821,-156.31,0.00028761,2]
[341721046,1731132631831,-156.31,0.00028818,2]
[341721047,1731132631841,-158.39,0.00028866,30]
[341721048,1731132631850,-156.31,0.00028875,2]
[341721049,1731132631860,-156.31,0.00028933,2]
[341721050,1731132631869,-524.1,0.00028956,120]
[341721052,1731132631879,-194.1,0.00029076,2]
[341721054,1731132631888,-40.92762623,0.00029114,2]
[341721057,1731132631922,-692.27237377,0.00029114,2]
[341721058,1731132631931,-733.2,0.00029567,2]
[341721059,1731132631941,-236.01,0.0002966,2]
[341721060,1731132631951,-425.63374272,0.00029719,2]
[341721061,1731132631960,-965.29,0.000298,2]
[341721062,1731132631970,-616.7926,0.00029857,2]
[341721063,1731132631980,-1149.97449877,0.00029884,2]
[341721064,1731132631992,-1742.66741355,0.00029884,2]
[341721065,1731132632004,-549.32852277,0.00029884,2]
[341721066,1731132632015,-570.09,0.00029884,2]
[341721067,1731132632027,-3477.96126539,0.00029884,2]
[341721068,1731132632039,-1552.423596,0.00029884,2]
[341721069,1731132632056,-482.21264318,0.00029884,2]
[341721070,1731132632068,-1306.47276092,0.00029884,2]
[341721071,1731132632085,-317.85279942,0.00029884,2]
[341721072,1731132632095,-2105.033,0.00029899,2]
[341721073,1731132632104,-857.619361,0.000299,2]
[341721074,1731132632114,-263.3692,0.000299,2]
[341721075,1731132632123,-2153.4922,0.000299,2]
[341721077,1731132632133,-155.45469241,0.000299,2]
[341721079,1731132632142,-267.56738571,0.000299,2]
[341721081,1731132632152,-510.4835,0.000299,2]
[341721083,1731132632162,-22769.67883484,0.000299,2]
[341721085,1731132632174,-332.80916516,0.000299,2]
[341721086,1731132632185,-874.6849,0.000299,2]
[341721087,1731132632195,-3370.7158,0.000299,2]
[341721088,1731132632205,-150.0,0.000299,2]
[341721089,1731132632215,-155.53371702,0.000299,2]
[341721090,1731132632225,-219.51755411,0.000299,2]
[341721091,1731132632235,-328.9100611,0.000299,2]
[341721092,1731132632244,-196.32955188,0.000299,2]
[341721093,1731132632254,-161.25,0.00029919,24]
[341721094,1731132632264,-219.51755407,0.00029919,2]
[341721095,1731132632274,-219.51755407,0.00029939,2]
[341721096,1731132632284,-219.51755407,0.00029958,2]
[341721097,1731132632294,-500.0,0.00029973,2]
[341721098,1731132632303,-219.51755407,0.00029978,2]
[341721099,1731132632313,-219.51755407,0.00029997,2]
[341721100,1731132632323,-3627.52220588,0.00029999,2]
[341721101,1731132632333,-216.45354568,0.00029999,2]
[341721103,1731132637541,-283.54645432,0.00029999,2]
[341721104,1731132637550,-500.0,0.00029999,2]
[341721105,1731132637559,-500.0,0.00029999,2]
[341721106,1731132637568,-240.65137103,0.00029999,2]
[341721107,1731132637579,-66.04645381,0.00029999,2]
[341721108,1731132637588,-500.0,0.00029999,2]
[341721109,1731132637597,-374.14770259,0.00029999,2]
[341721110,1731132637608,-129.46649572,0.00029999,2]
[341721111,1731132637617,-500.0,0.00029999,2]
[341721112,1731132637626,-500.0,0.00029999,7]
[341721113,1731132637635,-184.33414242,0.00029999,2]
[341721114,1731132637674,-3.33439785,0.00029999,2]
[341721115,1731132637685,-7312.33145973,0.00029999,2]
[341721116,1731132637694,-1375.25646859,0.00029999,2]
[341721117,1731132637704,-2111.70370995,0.0003,2]
[341721118,1731132637715,-2049.36790258,0.0003,4]
[341721119,1731132637737,-3828.8,0.0003,4]
[341721120,1731132637748,-3043.0,0.0003,4]
[341721121,1731132637760,-664.49215407,0.0003,4]
[341721122,1731132637838,-32368.0304975,0.0003,4]
[341721123,1731132637849,-3897.13547401,0.0003,4]
[341721124,1731132637863,-3256.0537303,0.0003,4]
[341721125,1731132637875,-1001.91245247,0.0003,4]
[341721126,1731132637889,-15223.53325587,0.0003,4]
[341721127,1731132637900,-592.08569065,0.0003,4]
[341721128,1731132637910,-13671.65235,0.0003,4]
[341721129,1731132637925,-1345.48638074,0.0003,4]
[341721156,1731132639717,-464.84309437,0.0003,4]
[341721157,1731132639729,-3206.4969001,0.0003,4]
[341721158,1731132639740,-915.30424572,0.0003,4]
[341721159,1731132639784,-304.7,0.0003,4]
[341721160,1731132639796,-454.25675803,0.0003,4]
[341721190,1731132642879,-675.86857787,0.0003,4]
[341721191,1731132642891,-12207.98461037,0.0003,4]
[341721192,1731132642900,-1159.97175928,0.0003,4]
[341721193,1731132643027,-1179.40763359,0.0003,4]
[341721194,1731132643036,-6826.51624639,0.0003,4]
[341721195,1731132643051,-2499.34826098,0.0003,4]
[341721196,1731132643131,-1783.06780709,0.0003,4]
[341721408,1731132645463,-184.18,0.0002999,10]
[341721410,1731132645472,-213.83722633,0.0003,4]
[341721413,1731132645484,-1224.9376738,0.0003,4]
[341721434,1731132645689,-2735.70533876,0.0003,4]
[341721443,1731132645765,-15153.42142874,0.0003,4]
[341721445,1731132645777,-1995.95248805,0.0003,4]
[341721447,1731132645789,-1301.37556257,0.0003,4]
[341721453,1731132645841,-483.36426047,0.0003,4]
[341721735,1731132831697,-500.0,0.00028373,2]
[341721736,1731132831720,-500.0,0.00028376,2]
[341721737,1731132831742,-500.0,0.00028376,2]
[341721738,1731132831764,-514.07281427,0.00028376,2]
[341721739,1731132831787,-500.0,0.00028376,2]
[341721740,1731132831810,-218.9538469,0.00028376,2]
[341721741,1731132831831,-173.68850135,0.00028376,2]
[341721751,1731133055934,156.58,0.00015342,2]
[341721754,1731133118925,150.0,0.00020001,2]
[341721764,1731133206907,-150.0,0.00020001,2]
[341721765,1731133207076,-150.0,0.00020001,2]
[341721766,1731133207172,-150.0,0.00020001,2]
[341721770,1731133508557,150.0,0.00016,2]
[341721771,1731133508579,150.0,0.00016,2]
[341721772,1731133508602,150.0,0.00016,2]
[341721773,1731133508625,2050746.05903286,0.00016,2]
[341721775,1731133519859,4510.99638827,9e-05,2]
[341721776,1731133536547,150.0,9e-05,2]
[341721777,1731133536570,150.0,9e-05,2]
[341721778,1731133536593,150.0,9e-05,2]
[341721779,1731133536615,150.0,9e-05,2]
[341721780,1731133536637,150.0,9e-05,2]
[341721781,1731133536661,150.0,9e-05,2]
[341721782,1731133536687,150.0,9e-05,2]
[341721783,1731133536710,150.0,9e-05,2]
[341721784,1731133536732,150.0,9e-05,2]
[341721785,1731133536753,150.0,9e-05,2]
[341721786,1731133536777,66.9377507,9e-05,2]
[341721787,1731133542115,-716.1761573,0.000205,2]
[341721788,1731133554900,150.0,0.0001892,2]
[341721789,1731133554927,150.0,0.0001892,2]
[341721790,1731133554949,150.0,0.0001892,2]
[341721791,1731133554974,150.0,0.0001892,2]
[341721792,1731133554999,150.0,0.0001892,2]
[341721793,1731133555069,150.0,0.0001892,2]
[341721794,1731133555092,150.0,0.0001892,2]
[341721795,1731133555114,1350.0,0.0001892,2]
[341721796,1731133555407,150.0,6.94e-05,2]
[341721797,1731133555432,20.54581814,6.94e-05,2]
[341721798,1731133556103,-260.8238427,0.000205,2]
[341721799,1731133556123,-150.0,0.0002223,2]
[341721800,1731133556142,-1228.5145,0.0002474,2]
[341721801,1731133556162,-175.04325,0.0002474,2]
[341721802,1731133556183,-491.44,0.00026466,2]
[341721803,1731133556204,-424.12091478,0.00026936,2]
[341721805,1731133574197,129.45418186,0.00018123,2]
[341721806,1731133574220,20.54581814,0.00018123,2]
[341721808,1731133621836,129.45418186,0.00019725,2]
[341721809,1731133621860,150.0,0.00019725,2]
[341721810,1731133621884,20.54581814,0.00019725,2]
[341721811,1731133629101,-764.25908522,0.00026936,2]
[341721812,1731133629122,-600.0,0.00027,28]
[341721813,1731133629142,-610.34673657,0.00027,28]
[341721814,1731133629162,-600.0,0.00027122,29]
[341721815,1731133629183,-376.5429363,0.00027221,2]
[341721816,1731133643755,129.45418186,0.0001305,2]
[341721817,1731133643778,260.29997702,0.0001305,2]
[341721818,1731133643803,150.0,0.0001305,2]
[341721819,1731133643830,2693.68590211,0.0001305,2]
[341721820,1731133644101,247.09043485,0.000101,2]
[341721822,1731133684190,59048.00343564,0.00015,2]
[341721823,1731133693458,150.0,0.0002,2]
[341721824,1731133693480,3.94615645,0.0002,2]
[341721825,1731133699262,150.0,0.0001439,2]
[341721826,1731133699285,5.00107924,0.0001439,2]
[341721827,1731133710409,150.0,0.000156,2]
[341721828,1731133710430,150.0,0.000156,2]
[341721829,1731133710453,80.19165465,0.000156,2]
[341721830,1731133714421,271.75463495,0.000129,2]
[341721831,1731133714444,220.10964359,0.000129,2]
[341721834,1731133727078,151.24078214,0.0002,2]
[341721835,1731133727982,482.42026416,0.000154,2]
[341721837,1731133745105,-682.56931172,0.00027121,2]
[341721838,1731133756938,156.21269247,0.00027121,2]
[341721839,1731133760343,495.61,0.00025308,2]
[341721840,1731133781929,419.28,0.00027117,120]
[341721841,1731133801869,250.0,0.00027117,2]
[341721842,1731133802240,150.0,0.000154,2]
[341721843,1731133802424,150.0,0.000154,2]
[341721844,1731133802621,150.0,0.000154,2]
[341721845,1731133802964,300.0,0.000154,2]
[341721863,1731133831635,-500.0,0.0002722,2]
[341721864,1731133831645,-511.17242404,0.0002722,2]
[341721865,1731133831654,-500.0,0.0002722,2]
[341721866,1731133831663,-18801.7347388,0.00027221,2]
[341721872,1731133831793,-2720.77304605,0.00027221,2]
[341721873,1731133831804,-273.41271052,0.00027221,2]
[341721874,1731133831885,-34728.89579139,0.00027221,2]
[341721875,1731133831896,-44926.48350005,0.00027221,2]
[341721876,1731133831974,-81875.02165,0.00027221,2]
[341721877,1731133831986,-76376.16558696,0.00027221,2]
[341721878,1731133832068,-1000.0,0.00027221,2]
[341721891,1731133837645,-245538.33224954,0.00027221,2]
[341721892,1731133838207,-3006.49961874,0.00027221,2]
[341721893,1731133838218,-940.02707488,0.00027221,2]
[341721894,1731133838229,-369.21874683,0.00027221,2]
[341721895,1731133838250,-21305.16579998,0.00027221,2]
[341721896,1731133838261,-5000.0,0.00027221,2]
[341721897,1731133838272,-477.39557561,0.00027221,2]
[341721898,1731133838290,-49675.12748165,0.00027221,2]
[341721899,1731133838298,-623.4570637,0.00027221,2]
[341721900,1731133838307,-500.0,0.00027273,2]
[341721902,1731133838317,-1188.38,0.00027369,2]
[341721903,1731133838325,-282.25,0.00027382,2]
[341721904,1731133838334,-20273.79,0.00027386,2]
[341721906,1731133838343,-275.29,0.00027399,2]
[341721909,1731133838352,-682.5693117,0.00027445,2]
[341721910,1731133838361,-1930.58,0.00027555,2]
[341721911,1731133838370,-966.36,0.00027555,2]
[341721912,1731133838379,-966.36,0.00027555,2]
[341721913,1731133838389,-495.61,0.00027572,2]
[341721914,1731133838398,-158.39,0.00027665,30]
[341721915,1731133838407,-682.5693117,0.00027769,2]
[341721916,1731133838417,-1188.38,0.00027801,2]
[341721917,1731133838426,-682.5693117,0.00028093,2]
[341721918,1731133838435,-156.21269245,0.00028093,2]
[341721919,1731133838444,-250.0,0.00028155,2]
[341721920,1731133838453,-1188.38,0.00028234,2]
[341721921,1731133838463,-191.02,0.00028254,120]
[341721922,1731133838472,-495.62684455,0.00028273,5]
[341721923,1731133838481,-500.0,0.00028273,5]
[341721924,1731133838490,-500.0,0.00028273,5]
[341721925,1731133838500,-500.0,0.00028273,5]